bitfinex-derivatives/quotes_BTCF0:USTF0_20260207
["timestamp","ask_amount","ask_price","bid_price","bid_amount"]
[1770450494657,0.014674,68193.0,68162.0,0.01468]
[1770450495058,0.014679,68171.0,68148.0,0.50146152]
[1770450495251,0.014679,68169.0,68134.0,0.54246152]
[1770450495453,0.014679,68169.0,68121.0,0.54246152]
[1770450495454,0.014684,68146.0,68121.0,0.54246152]
[1770450495652,0.55217882,68159.0,68110.0,0.014691]
[1770450495955,0.55217882,68156.0,68107.0,0.54246152]
[1770450496155,0.55217882,68151.0,68112.0,0.014691]
[1770450496355,0.55217882,68165.0,68126.0,0.014688]
[1770450496552,0.55217882,68142.0,68099.0,0.54246152]
[1770450496752,0.014687,68134.0,68105.0,0.014693]
[1770450496952,0.014687,68131.0,68105.0,0.014692]
[1770450498152,0.014687,68131.0,68099.0,0.54246152]
[1770450498153,0.55217882,68159.0,68113.0,0.54246152]
[1770450498350,0.55217882,68155.0,68114.0,0.014691]
[1770450498562,0.55217882,68153.0,68113.0,0.54246152]
[1770450498960,0.014683,68152.0,68105.0,0.014693]
[1770450499162,0.014687,68133.0,68105.0,0.014693]
[1770450499767,0.014686,68137.0,68100.0,0.54246152]
[1770450499968,0.014687,68133.0,68103.0,0.014693]
[1770450500168,0.55217882,68139.0,68103.0,0.014693]
[1770450500566,0.1462,68194.0,68080.0,0.16583111]
[1770450500567,0.55217882,68130.0,68090.0,0.014696]
[1770450500770,0.55217882,68130.0,68087.0,0.54246152]
[1770450500965,0.01469,68119.0,68091.0,0.014696]
[1770450501173,0.55217882,68130.0,68087.0,0.54246152]
[1770450501373,0.014689,68123.0,68094.0,0.014695]
[1770450501776,0.55217882,68143.0,68110.0,0.014692]
[1770450501982,0.014686,68137.0,68110.0,0.014692]
[1770450502179,0.014686,68137.0,68106.0,0.014692]
[1770450502479,0.55217882,68140.0,68090.0,0.54246152]
[1770450502771,0.55217882,68140.0,68069.0,0.2891078]
[1770450502772,0.55217882,68149.0,68106.0,0.54246152]
[1770450502976,0.014687,68134.0,68106.0,0.54246152]
[1770450503176,0.014687,68130.0,68106.0,0.54246152]
[1770450503382,0.014687,68130.0,68103.0,0.014693]
[1770450504081,0.014688,68126.0,68098.0,0.014694]
[1770450504676,0.014689,68123.0,68098.0,0.014694]
[1770450505074,0.014689,68123.0,68093.0,0.54246152]
[1770450505075,0.55217882,68129.0,68093.0,0.54246152]
[1770450505372,0.55217882,68129.0,68070.0,0.0147]
[1770450505373,0.014691,68114.0,68086.0,0.014697]
[1770450505777,0.014689,68122.0,68091.0,0.54246152]
[1770450505976,0.014691,68116.0,68091.0,0.54246152]
[1770450506175,0.55217882,68120.0,68078.0,0.014698]
[1770450506375,0.014691,68112.0,68083.0,0.014697]
[1770450506979,0.014691,68112.0,68086.0,0.014697]
[1770450507181,0.014691,68115.0,68087.0,0.014696]
[1770450507383,0.55217882,68120.0,68065.0,0.54246152]
[1770450507584,0.55217882,68120.0,68074.0,0.014699]
[1770450507585,0.014694,68100.0,68074.0,0.014699]
[1770450507879,0.55217882,68109.0,68071.0,0.54246152]
[1770450508181,0.014695,68097.0,68071.0,0.54246152]
[1770450508579,0.014694,68099.0,68071.0,0.54246152]
[1770450508774,0.014695,68096.0,68068.0,0.014701]
[1770450508971,0.014695,68096.0,68059.0,0.54246152]
[1770450508972,0.014694,68102.0,68059.0,0.54246152]
[1770450509181,0.014691,68112.0,68085.0,0.014697]
[1770450509780,0.55217882,68125.0,68088.0,0.014696]
[1770450509978,0.014689,68122.0,68090.0,0.014696]
[1770450510179,0.01469,68119.0,68090.0,0.014696]
[1770450510484,0.01469,68119.0,68093.0,0.014695]
[1770450511182,0.55217882,68143.0,68102.0,0.54246152]
[1770450511682,0.0002,68146.0,68088.0,0.54246152]
[1770450511683,0.55217882,68131.0,68088.0,0.54246152]
[1770450511874,0.55217882,68131.0,68061.0,0.95036]
[1770450511875,0.014697,68088.0,68052.0,0.54246152]
[1770450512073,0.014697,68085.0,68054.0,0.014704]
[1770450512275,0.014699,68078.0,68054.0,0.014704]
[1770450512479,0.55217882,68093.0,68052.0,0.54246152]
[1770450512681,0.42674084,68146.0,68052.0,0.54246152]
[1770450512682,0.55217882,68091.0,68052.0,0.54246152]
[1770450513181,0.55217882,68091.0,68053.0,0.014704]
[1770450513379,0.55217882,68088.0,68052.0,0.54246152]
[1770450513580,0.014698,68082.0,68055.0,0.014703]
[1770450514172,0.014698,68079.0,68052.0,0.54246152]
[1770450514376,0.014696,68089.0,68062.0,0.014702]
[1770450514575,0.014696,68092.0,68065.0,0.014701]
[1770450514985,0.55217882,68102.0,68075.0,0.014699]
[1770450515182,0.014695,68097.0,68071.0,0.0147]
[1770450515586,0.014695,68097.0,68065.0,0.54246152]
[1770450515784,0.014693,68102.0,68065.0,0.54246152]
[1770450515985,0.014692,68111.0,68096.0,0.001]
[1770450516185,0.014691,68115.0,68096.0,0.001]
[1770450516490,0.53656127,68126.0,68110.0,0.002]
[1770450516678,0.0002,68136.0,68110.0,0.002]
[1770450516876,0.0002,68136.0,68091.0,0.57692427]
[1770450516877,0.014687,68131.0,68114.0,0.002]
[1770450517084,0.53656127,68131.0,68092.0,0.014695]
[1770450517280,0.014691,68113.0,68084.0,0.59162127]
[1770450517585,0.014691,68113.0,68087.0,0.014697]
[1770450517780,0.014691,68113.0,68084.0,0.55662126]
[1770450517982,0.014692,68110.0,68084.0,0.55662126]
[1770450518283,0.53656127,68122.0,68085.0,0.014697]
[1770450518483,0.53656127,68122.0,68085.0,0.57692427]
[1770450518875,0.014694,68101.0,68085.0,0.57692427]
[1770450519081,0.014693,68105.0,68085.0,0.57692427]
[1770450519275,0.53656127,68120.0,68079.0,0.014698]
[1770450519480,0.014693,68106.0,68079.0,0.014698]
[1770450519886,0.53656127,68116.0,68073.0,0.57692427]
[1770450520178,0.014692,68108.0,68081.0,0.014698]
[1770450520383,0.53656127,68116.0,68081.0,0.014698]
[1770450520784,0.53656127,68116.0,68084.0,0.014697]
[1770450521287,0.014695,68097.0,68073.0,0.57692427]
[1770450521482,0.014695,68094.0,68073.0,0.57692427]
[1770450521688,0.53656127,68105.0,68073.0,0.57692427]
[1770450521981,0.53656127,68117.0,68093.0,0.0026]
[1770450522588,0.0002,68132.0,68092.0,0.014695]
[1770450522589,0.53656127,68129.0,68092.0,0.014695]
[1770450522788,0.01469,68118.0,68092.0,0.014695]
[1770450522991,0.014689,68122.0,68095.0,0.014695]
[1770450523490,0.014688,68125.0,68085.0,0.57692427]
[1770450523691,0.01469,68118.0,68093.0,0.014695]
[1770450523883,0.001,68117.0,68096.0,0.57692427]
[1770450524087,0.001,68117.0,68099.0,0.014694]
[1770450524586,0.014688,68125.0,68099.0,0.014694]
[1770450525180,0.014688,68129.0,68102.0,0.014693]
[1770450525585,0.53656127,68142.0,68096.0,0.57692427]
[1770450525889,0.014685,68143.0,68114.0,0.57692427]
[1770450526087,0.0002,68147.0,68119.0,0.01469]
[1770450526283,0.0002,68147.0,68122.0,0.014689]
[1770450526284,0.014684,68147.0,68122.0,0.014689]
[1770450526485,0.014684,68147.0,68118.0,0.01469]
[1770450526796,0.014684,68147.0,68121.0,0.014689]
[1770450527193,0.014682,68153.0,68115.0,0.57692427]
[1770450527388,0.014682,68153.0,68126.0,0.014688]
[1770450527692,0.0002,68175.0,68120.0,0.57692427]
[1770450527693,0.014682,68157.0,68120.0,0.57692427]
[1770450527896,0.014683,68152.0,68124.0,0.014688]
[1770450528191,0.0002,68175.0,68138.0,0.57692427]
[1770450528400,0.53656127,68189.0,68146.0,0.57692427]
[1770450528594,0.014677,68181.0,68151.0,0.014683]
[1770450528892,0.014874,68190.0,68159.0,0.57692427]
[1770450529099,0.0002,68190.0,68159.0,0.57692427]
[1770450529292,0.014675,68189.0,68162.0,0.57692427]
[1770450529898,0.014674,68193.0,68162.0,0.57692427]
[1770450530088,0.014672,68200.0,68169.0,0.014679]
[1770450530394,0.014674,68192.0,68168.0,0.57692427]
[1770450530597,0.014674,68193.0,68165.0,0.01468]
[1770450530794,0.073346,68216.0,68130.0,0.15113311]
[1770450530795,0.014675,68186.0,68156.0,1.54204627]
[1770450530986,0.53656127,68195.0,68156.0,0.57692427]
[1770450531188,0.014676,68181.0,68156.0,0.57692427]
[1770450531390,0.014676,68185.0,68154.0,0.014682]
[1770450531587,0.53656127,68195.0,68158.0,0.57692427]
[1770450531892,0.014873,68196.0,68170.0,0.57692427]
[1770450532093,0.014674,68192.0,68170.0,0.57692427]
[1770450532285,0.0002,68208.0,68139.0,0.29038225]
[1770450532286,0.53656127,68201.0,68158.0,0.014681]
[1770450532490,0.014677,68180.0,68157.0,0.57692427]
[1770450532885,0.014676,68184.0,68157.0,0.57692427]
[1770450533095,0.014677,68181.0,68157.0,0.57692427]
[1770450533288,0.014674,68194.0,68161.0,0.014681]
[1770450533496,0.014674,68194.0,68164.0,0.01468]
[1770450533694,0.014673,68198.0,68167.0,0.014679]
[1770450533895,0.0002,68199.0,68167.0,0.57692427]
[1770450533896,0.014674,68191.0,68167.0,0.57692427]
[1770450535594,0.53656127,68197.0,68155.0,0.59160627]
[1770450536090,0.53656127,68197.0,68159.0,0.014681]
[1770450536296,0.014675,68186.0,68159.0,0.014681]
[1770450536594,0.014674,68190.0,68163.0,0.59160427]
[1770450536896,0.0002,68191.0,68166.0,0.014679]
[1770450537394,0.0002,68191.0,68166.0,0.59160327]
[1770450537594,0.014674,68195.0,68166.0,0.59160327]
[1770450537790,0.470616,68192.0,68166.0,0.59160327]
[1770450538300,0.014674,68195.0,68166.0,0.59160327]
[1770450538596,0.014674,68192.0,68166.0,0.59160327]
[1770450538799,0.014674,68192.0,68166.0,0.57692427]
[1770450540712,0.0002,68204.0,68170.0,0.72805738]
[1770450540906,0.014671,68206.0,68191.0,0.0017]
[1770450541305,0.014672,68203.0,68181.0,0.53862427]
[1770450541602,0.014674,68191.0,68160.0,0.014681]
[1770450541801,0.014674,68191.0,68157.0,0.57692427]
[1770450542000,0.0002,68203.0,68166.0,0.57692427]
[1770450542203,0.0002,68203.0,68181.0,0.57692427]
[1770450542403,0.0002,68203.0,68186.0,0.014675]
[1770450543208,0.0002,68211.0,68186.0,0.014675]
[1770450543399,0.0002,68211.0,68190.0,0.014674]
[1770450543697,0.0002,68211.0,68189.0,0.014675]
[1770450543902,0.0002,68211.0,68186.0,0.57692427]
[1770450544099,0.0002,68211.0,68186.0,0.59159927]
[1770450544399,0.014669,68216.0,68189.0,0.014674]
[1770450544696,0.01467,68213.0,68188.0,0.014675]
[1770450545103,0.01467,68213.0,68188.0,0.59159927]
[1770450545604,0.01467,68210.0,68188.0,0.57692427]
[1770450545909,0.014671,68206.0,68188.0,0.57692427]
[1770450546109,0.53676127,68218.0,68188.0,0.57692427]
[1770450546404,0.01467,68210.0,68188.0,0.57692427]
[1770450546805,0.014669,68214.0,68188.0,0.57692427]
[1770450547000,0.014669,68214.0,68188.0,0.59159927]
[1770450547205,0.014669,68214.0,68209.0,0.0011]
[1770450547403,0.01306953,68214.0,68209.0,0.0011]
[1770450547596,0.01467,68212.0,68188.0,0.57692427]
[1770450547799,0.01467,68209.0,68188.0,0.57692427]
[1770450548201,0.01467,68213.0,68188.0,0.57692427]
[1770450548509,0.014669,68217.0,68208.0,0.0027]
[1770450548701,0.014669,68217.0,68192.0,0.014674]
[1770450548900,0.0002,68218.0,68188.0,0.59159927]
[1770450548901,0.014669,68214.0,68188.0,0.59159927]
[1770450549101,0.01467,68211.0,68188.0,0.55992427]
[1770450549407,0.014669,68215.0,68188.0,0.55992427]
[1770450549601,0.01467,68212.0,68189.0,0.014675]
[1770450549804,0.01467,68212.0,68160.0,0.15074645]
[1770450549805,0.01487,68209.0,68182.0,0.57254081]
[1770450550003,0.01487,68209.0,68185.0,0.014675]
[1770450550403,0.0002,68209.0,68188.0,0.014675]
[1770450550914,0.01467,68213.0,68188.0,0.014675]
[1770450551404,0.0002,68215.0,68191.0,0.014674]
[1770450551608,0.014669,68214.0,68189.0,0.014675]
[1770450551908,0.53445175,68241.0,68214.0,0.001]
[1770450552213,0.014665,68235.0,68214.0,0.001]
[1770450552409,0.470616,68228.0,68214.0,0.001]
[1770450552797,0.470616,68228.0,68210.0,0.01467]
[1770450553108,0.014665,68235.0,68227.0,0.002]
[1770450553304,0.014665,68235.0,68207.0,0.55786481]
[1770450553516,0.53445175,68241.0,68207.0,0.55786481]
[1770450553517,0.014665,68232.0,68207.0,0.55786481]
[1770450553810,0.014665,68236.0,68208.0,0.01467]
[1770450554211,0.014665,68236.0,68198.0,0.94944]
[1770450554212,0.53445175,68253.0,68231.0,0.0011]
[1770450554414,0.53445175,68265.0,68231.0,0.0011]
[1770450554615,0.014658,68269.0,68241.0,0.014663]
[1770450554801,0.53445175,68268.0,68231.0,0.55896481]
[1770450555007,0.53445175,68257.0,68220.0,0.55786481]
[1770450555310,0.014661,68253.0,68223.0,0.55786481]
[1770450555510,0.0002,68242.0,68223.0,0.55786481]
[1770450556114,0.014659,68263.0,68241.0,0.002]
[1770450556414,0.001,68253.0,68241.0,0.55986481]
[1770450556711,0.01466,68259.0,68241.0,0.55786481]
[1770450556920,0.014661,68251.0,68229.0,0.52086481]
[1770450557210,0.53445175,68262.0,68229.0,0.52086481]
[1770450557414,0.53445175,68262.0,68223.0,0.001]
[1770450557415,0.01466,68256.0,68230.0,0.57253081]
[1770450557604,0.014659,68261.0,68231.0,0.57253081]
[1770450557803,0.54911075,68262.0,68231.0,0.57253081]
[1770450558013,0.54911075,68262.0,68223.0,0.001]
[1770450558014,0.014654,68285.0,68249.0,0.55786481]
[1770450558311,0.01466,68259.0,68231.0,0.55786481]
[1770450558512,0.01466,68257.0,68231.0,0.55786481]
[1770450558711,0.014661,68254.0,68231.0,0.55786481]
[1770450559215,0.53445175,68271.0,68231.0,0.55786481]
[1770450559403,0.0002,68243.0,68231.0,0.55786481]
[1770450559608,0.53445175,68271.0,68253.0,0.0027]
[1770450559912,0.01466,68259.0,68242.0,0.0036]
[1770450560308,0.01466,68256.0,68231.0,0.55886481]
[1770450560512,0.014659,68260.0,68231.0,0.57352981]
[1770450560813,0.014659,68260.0,68231.0,0.57252981]
[1770450561002,0.01466,68257.0,68231.0,0.55786481]
[1770450561207,0.53445175,68251.0,68220.0,0.55786481]
[1770450561411,0.014663,68245.0,68220.0,0.55786481]
[1770450561806,0.53445175,68251.0,68209.0,0.55786481]
[1770450562117,0.53445175,68251.0,68185.0,0.2891078]
[1770450562118,0.53445175,68270.0,68198.0,0.55786481]
[1770450562318,0.53445175,68270.0,68234.0,0.55786481]
[1770450562319,0.53145175,68270.0,68234.0,0.55786481]
[1770450562609,0.014656,68276.0,68242.0,0.55786481]
[1770450562816,0.014657,68270.0,68244.0,0.014663]
[1770450563415,0.014657,68270.0,68223.0,0.073338]
[1770450563416,0.0002,68252.0,68224.0,0.55786481]
[1770450563713,0.0002,68252.0,68230.0,0.55786481]
[1770450564116,0.0002,68249.0,68230.0,0.55786481]
[1770450564308,0.0002,68249.0,68236.0,0.014664]
[1770450564510,0.0002,68249.0,68232.0,0.014665]
[1770450564711,0.53445175,68271.0,68238.0,0.014664]
[1770450564712,0.014658,68265.0,68238.0,0.014664]
[1770450564916,0.014658,68265.0,68248.0,0.0029]
[1770450564917,0.0002,68250.0,68248.0,0.0029]
[1770450565212,0.014658,68265.0,68248.0,0.0029]
[1770450565412,0.53445175,68271.0,68248.0,0.0029]
[1770450565614,0.0002,68252.0,68249.0,0.004]
[1770450565818,0.53445175,68271.0,68249.0,0.004]
[1770450566013,0.53445175,68282.0,68248.0,0.014662]
[1770450566212,0.53445175,68282.0,68248.0,0.015662]
[1770450566415,0.014657,68273.0,68248.0,0.001]
[1770450566720,0.0002,68268.0,68248.0,0.001]
[1770450567010,0.014657,68273.0,68247.0,0.57252681]
[1770450567416,0.014657,68271.0,68247.0,0.55786481]
[1770450567817,0.53445175,68277.0,68237.0,0.014664]
[1770450567818,0.014658,68266.0,68237.0,0.014664]
[1770450568016,0.53445175,68267.0,68224.0,0.55786481]
[1770450568310,0.0002,68268.0,68224.0,0.55786481]
[1770450568311,0.53445175,68256.0,68230.0,0.014666]
[1770450568513,0.014658,68266.0,68224.0,0.55786481]
[1770450568816,0.014659,68260.0,68234.0,0.014665]
[1770450570208,0.014659,68260.0,68224.0,0.55786481]
[1770450570209,0.53465175,68265.0,68230.0,0.014666]
[1770450570409,0.0002,68251.0,68229.0,0.014666]
[1770450570616,0.0002,68251.0,68228.0,0.014666]
[1770450571014,0.014662,68250.0,68224.0,0.57253181]
[1770450571317,0.0002,68251.0,68224.0,0.57253181]
[1770450571318,0.0002,68251.0,68224.0,0.55786481]
[1770450571520,0.014661,68254.0,68227.0,0.014666]
[1770450572415,0.014662,68248.0,68224.0,0.53353081]
[1770450572618,0.53445175,68256.0,68224.0,0.53353081]
[1770450572817,0.53445175,68256.0,68225.0,0.014667]
[1770450573408,0.014663,68244.0,68217.0,0.014668]
[1770450573612,0.014663,68244.0,68213.0,0.55786481]
[1770450573613,0.014665,68235.0,68213.0,0.55786481]
[1770450573808,0.014664,68237.0,68210.0,0.57253481]
[1770450574013,0.53445175,68259.0,68243.0,0.0011]
[1770450574310,0.53445175,68259.0,68223.0,0.55786481]
[1770450574311,0.014661,68251.0,68236.0,0.0019]
[1770450574621,0.014661,68251.0,68223.0,0.55786481]
[1770450574915,0.014663,68245.0,68223.0,0.55786481]
[1770450575216,0.014665,68234.0,68211.0,0.55786481]
[1770450575412,0.014665,68232.0,68205.0,0.014671]
[1770450575720,0.53445175,68245.0,68201.0,0.014672]
[1770450575721,0.014666,68229.0,68201.0,0.014672]
[1770450575913,0.014666,68229.0,68195.0,0.55786481]
[1770450576112,0.014666,68229.0,68190.0,0.21695425]
[1770450576113,0.5811706,68229.0,68190.0,0.21695425]
[1770450576314,0.5811706,68209.0,68183.0,0.2891078]
[1770450576510,0.014673,68198.0,68183.0,0.2891078]
[1770450576712,0.5811706,68201.0,68162.0,0.54039533]
[1770450577015,0.5811706,68209.0,68197.0,0.0011]
[1770450577414,0.5811706,68209.0,68200.0,0.0011]
[1770450577917,0.5811706,68209.0,68179.0,0.55507233]
[1770450578311,0.5811706,68209.0,68180.0,0.014676]
[1770450578611,0.5811706,68209.0,68180.0,0.55507133]
[1770450578921,0.014672,68201.0,68172.0,0.014678]
[1770450579116,0.5811706,68224.0,68180.0,0.54039533]
[1770450579325,0.5811706,68204.0,68179.0,0.001]
[1770450579525,0.014671,68205.0,68179.0,0.001]
[1770450579727,0.014672,68203.0,68179.0,0.001]
[1770450580022,0.014667,68223.0,68152.0,0.54039533]
[1770450580023,0.5811706,68199.0,68152.0,0.54039533]
[1770450580222,0.014673,68197.0,68162.0,0.52607433]
[1770450580619,0.01467,68209.0,68178.0,0.54039533]
[1770450580817,0.01467,68209.0,68196.0,0.0017]
[1770450581223,0.5811706,68223.0,68196.0,0.0017]
[1770450581522,0.014667,68223.0,68208.0,0.0017]
[1770450581927,0.014666,68230.0,68222.0,0.0027]
[1770450582223,0.014666,68230.0,68196.0,0.54039533]
[1770450582419,0.014666,68230.0,68179.0,0.21832706]
[1770450582420,0.168616,68219.0,68200.0,0.54039533]
[1770450582625,0.5958356,68234.0,68200.0,0.54039533]
[1770450582816,0.014666,68230.0,68200.0,0.54039533]
[1770450583012,0.073307,68253.0,68200.0,0.54039533]
[1770450583013,0.5811706,68245.0,68216.0,0.55506433]
[1770450583221,0.014662,68249.0,68216.0,0.55506433]
[1770450583413,0.5811706,68243.0,68207.0,0.54039533]
[1770450583620,0.5811706,68260.0,68217.0,0.55506333]
[1770450583819,0.014663,68243.0,68217.0,0.54039533]
[1770450584122,0.5811706,68250.0,68204.0,0.54039533]
[1770450584324,0.014665,68235.0,68205.0,0.014671]
[1770450584629,0.014665,68235.0,68205.0,0.55506633]
[1770450584825,0.014666,68232.0,68205.0,0.55506633]
[1770450585125,0.014665,68236.0,68205.0,0.55506633]
[1770450585736,0.5811706,68245.0,68205.0,0.54039533]
[1770450585928,0.014666,68230.0,68205.0,0.54039533]
[1770450586128,0.5811706,68245.0,68209.0,0.01467]
[1770450586325,0.014664,68239.0,68209.0,0.01467]
[1770450586828,0.014663,68243.0,68213.0,0.014669]
[1770450587019,0.014664,68240.0,68209.0,0.01467]
[1770450587422,0.01466,68256.0,68220.0,0.55506333]
[1770450587423,0.5811706,68256.0,68220.0,0.55506333]
[1770450587630,0.014662,68250.0,68239.0,0.0018]
[1770450587827,0.014662,68250.0,68220.0,0.55506333]
[1770450588121,0.46805678,68270.0,68220.0,0.51506333]
[1770450588122,0.5811706,68269.0,68220.0,0.51506333]
[1770450588333,0.5811706,68269.0,68240.0,0.54039533]
[1770450588517,0.5811706,68280.0,68249.0,0.0017]
[1770450588829,0.014653,68292.0,68240.0,0.54039533]
[1770450588830,0.5811706,68292.0,68268.0,0.0026]
[1770450589132,0.014653,68290.0,68261.0,0.54039533]
[1770450589329,0.5811706,68301.0,68261.0,0.54039533]
[1770450589627,0.5811706,68301.0,68266.0,0.54039533]
[1770450589826,0.014651,68299.0,68266.0,0.54039533]
[1770450590020,0.5811706,68301.0,68266.0,0.54039533]
[1770450590330,0.014651,68298.0,68268.0,0.54039533]
[1770450590520,0.014651,68298.0,68269.0,0.55505233]
[1770450591015,0.014651,68298.0,68269.0,0.54039533]
[1770450591216,0.5811706,68301.0,68269.0,0.54039533]
[1770450591428,0.5811706,68312.0,68272.0,0.54039533]
[1770450591623,0.5811706,68311.0,68277.0,0.54039533]
[1770450591825,0.014654,68287.0,68265.0,0.54039533]
[1770450592426,0.5811706,68300.0,68265.0,0.54039533]
[1770450592924,0.5811706,68297.0,68265.0,0.54039533]
[1770450593119,0.014653,68290.0,68265.0,0.54039533]
[1770450593319,0.014652,68295.0,68265.0,0.54039533]
[1770450593834,0.014652,68296.0,68267.0,0.54039533]
[1770450594926,0.014651,68301.0,68267.0,0.55505333]
[1770450595133,0.5811706,68312.0,68274.0,0.54039533]
[1770450595134,0.01465,68306.0,68274.0,0.54039533]
[1770450595722,0.5811706,68308.0,68262.0,0.54039533]
[1770450595921,0.014653,68289.0,68262.0,0.54039533]
[1770450596126,0.014654,68285.0,68262.0,0.54039533]
[1770450596327,0.014653,68289.0,68262.0,0.50539532]
[1770450596527,0.014654,68285.0,68262.0,0.50539532]
[1770450597031,0.5811706,68292.0,68262.0,0.50539532]
[1770450597938,0.014653,68290.0,68262.0,0.50539532]
[1770450598241,0.166616,68284.0,68264.0,0.54039533]
[1770450598926,0.014655,68280.0,68264.0,0.54039533]
[1770450599125,0.5811706,68288.0,68253.0,0.54039533]
[1770450599337,0.014658,68266.0,68242.0,0.54039533]
[1770450599532,0.014657,68270.0,68242.0,0.54039533]
[1770450600130,0.0002,68280.0,68247.0,0.54039533]
[1770450600131,0.014855,68280.0,68247.0,0.54039533]
[1770450600333,0.014656,68277.0,68249.0,0.54039533]
[1770450600630,0.0002,68280.0,68253.0,0.014661]
[1770450600830,0.0002,68280.0,68226.0,0.014666]
[1770450600831,0.014655,68279.0,68254.0,0.54039533]
[1770450601032,0.014656,68275.0,68254.0,0.54039533]
[1770450601231,0.014651,68298.0,68243.0,0.014663]
[1770450601232,0.014657,68272.0,68243.0,0.014663]
[1770450601634,0.5811706,68290.0,68252.0,0.54039533]
[1770450601832,0.014655,68281.0,68254.0,0.54039533]
[1770450602034,0.014654,68286.0,68257.0,0.54039533]
[1770450602238,0.5811706,68290.0,68257.0,0.54039533]
[1770450602635,0.5811706,68288.0,68246.0,0.54039533]
[1770450602834,0.014656,68277.0,68246.0,0.55505733]
[1770450603633,0.5811706,68288.0,68246.0,0.55505733]
[1770450603634,0.014656,68275.0,68246.0,0.55505733]
[1770450603828,0.014658,68269.0,68246.0,0.54039533]
[1770450604036,0.5811706,68279.0,68237.0,0.54039533]
[1770450604241,0.014659,68261.0,68237.0,0.50039533]
[1770450604436,0.5811706,68269.0,68220.0,0.54039533]
[1770450604640,0.5811706,68265.0,68225.0,0.54039533]
[1770450604839,0.014661,68252.0,68225.0,0.54039533]
[1770450605241,0.014661,68252.0,68237.0,0.001]
[1770450606143,0.5811706,68265.0,68225.0,0.54039533]
[1770450606338,0.014666,68231.0,68208.0,0.52783906]
[1770450606542,0.5780562,68246.0,68208.0,0.52783906]
[1770450606543,0.014664,68239.0,68210.0,0.01467]
[1770450606739,0.014665,68233.0,68194.0,0.52783906]
[1770450606943,0.5780562,68246.0,68181.0,0.862756]
[1770450606944,0.5780562,68246.0,68206.0,0.52783906]
[1770450607140,0.5780562,68252.0,68211.0,0.52783906]
[1770450607851,0.5780562,68252.0,68212.0,0.01467]
[1770450608148,0.014663,68243.0,68212.0,0.01467]
[1770450608342,0.014664,68240.0,68212.0,0.52783906]
[1770450608547,0.5780562,68252.0,68212.0,0.52783906]
[1770450608740,0.5780562,68246.0,68212.0,0.52783906]
[1770450609054,0.014666,68228.0,68201.0,0.52783906]
[1770450609245,0.014666,68228.0,68201.0,0.54251106]
[1770450609441,0.014666,68228.0,68201.0,0.52783906]
[1770450609840,0.014665,68233.0,68203.0,0.57203849]
[1770450610346,0.014666,68230.0,68203.0,0.57203849]
[1770450610854,0.53399254,68228.0,68188.0,0.57203849]
[1770450611348,0.01467,68210.0,68188.0,0.57203849]
[1770450611550,0.53399254,68228.0,68188.0,0.57203849]
[1770450611551,0.014669,68214.0,68188.0,0.57203849]
[1770450611750,0.01467,68211.0,68188.0,0.53203849]
[1770450611950,0.014669,68215.0,68188.0,0.53203849]
[1770450612140,0.01467,68209.0,68188.0,0.53203849]
[1770450612542,0.166616,68206.0,68188.0,0.53203849]
[1770450613252,0.53399254,68222.0,68177.0,0.57203849]
[1770450613442,0.53399254,68222.0,68188.0,0.001]
[1770450613953,0.53399254,68222.0,68188.0,0.57303849]
[1770450614142,0.53399254,68222.0,68189.0,0.58671349]
[1770450614143,0.014669,68217.0,68189.0,0.58671349]
[1770450614543,0.014668,68221.0,68192.0,0.014674]
[1770450614850,0.014667,68226.0,68197.0,0.57203849]
[1770450615039,0.014667,68226.0,68200.0,0.57203849]
[1770450615243,0.014664,68237.0,68207.0,0.58670949]
[1770450615438,0.53399254,68244.0,68207.0,0.57203849]
[1770450615644,0.014663,68242.0,68211.0,0.01467]
[1770450615946,0.53399254,68244.0,68217.0,0.014668]
[1770450616150,0.014662,68246.0,68217.0,0.58670649]
[1770450616544,0.014661,68253.0,68222.0,0.57203849]
[1770450616947,0.014661,68253.0,68223.0,0.58670549]
[1770450617149,0.014662,68249.0,68223.0,0.57203849]
[1770450617453,0.014661,68253.0,68223.0,0.57203849]
[1770450617648,0.014662,68246.0,68223.0,0.57203849]
[1770450618044,0.014661,68251.0,68223.0,0.57203849]
[1770450618941,0.53399254,68254.0,68224.0,0.57203849]
[1770450619141,0.01466,68257.0,68229.0,0.57203849]
[1770450619347,0.53399254,68265.0,68229.0,0.57203849]
[1770450619554,0.53399254,68265.0,68229.0,0.53703848]
[1770450619952,0.014661,68254.0,68229.0,0.53703848]
[1770450620154,0.014661,68251.0,68229.0,0.53703848]
[1770450620358,0.014661,68255.0,68229.0,0.53703848]
[1770450620556,0.01466,68259.0,68229.0,0.53703848]
[1770450620755,0.53399254,68279.0,68238.0,0.57203849]
[1770450621053,0.53399254,68279.0,68209.0,0.21832706]
[1770450621054,0.54864554,68290.0,68248.0,0.57203849]
[1770450621249,0.54864554,68290.0,68261.0,0.014659]
[1770450621551,0.014653,68291.0,68261.0,0.58669749]
[1770450621750,0.53399254,68297.0,68261.0,0.57203849]
[1770450622257,0.014651,68298.0,68265.0,0.57203849]
[1770450622454,0.53399254,68308.0,68269.0,0.57203849]
[1770450622648,0.53399254,68319.0,68285.0,0.014654]
[1770450622849,0.014647,68316.0,68280.0,0.014655]
[1770450623153,0.073216,68338.0,68280.0,0.57203849]
[1770450623154,0.53399254,68327.0,68280.0,0.57203849]
[1770450623361,0.53399254,68327.0,68285.0,0.57203849]
[1770450623658,0.014648,68315.0,68285.0,0.57203849]
[1770450623848,0.014642,68343.0,68285.0,0.57203849]
[1770450623849,0.01465,68303.0,68285.0,0.57203849]
[1770450624051,0.073233,68322.0,68265.0,1.12308567]
[1770450624052,0.014651,68299.0,68274.0,0.57203849]
[1770450624250,0.53399254,68313.0,68262.0,0.57203849]
[1770450624251,0.53399254,68297.0,68262.0,0.57203849]
[1770450624555,0.014655,68280.0,68250.0,0.57203849]
[1770450624754,0.014655,68281.0,68250.0,0.57203849]
[1770450624954,0.53399254,68287.0,68250.0,0.57203849]
[1770450625153,0.014654,68286.0,68251.0,0.014661]
[1770450625354,0.014654,68286.0,68251.0,0.58669949]
[1770450625556,0.014655,68282.0,68251.0,0.58669949]
[1770450625953,0.53399254,68299.0,68251.0,0.57203849]